bitfinex-derivatives/quotes_SOLF0:USTF0_20250909
["timestamp","ask_amount","ask_price","bid_price","bid_amount"]
[1757416262527,3.01503033,217.92,217.83,4.23135022]
[1757416262724,3.01503033,217.92,217.84,4.23135022]
[1757416263025,3.01503033,217.92,217.85,4.23135022]
[1757416263222,3.01503033,217.92,217.79,3.01503033]
[1757416263526,3.01503033,217.92,217.8,4.23170181]
[1757416263722,3.01503033,217.92,217.81,4.23170181]
[1757416263917,3.01503033,217.92,217.82,4.23170181]
[1757416264123,3.01503033,217.92,217.83,4.23170181]
[1757416264422,3.01503033,217.92,217.84,4.23170181]
[1757416264619,3.01503033,217.92,217.79,3.01503033]
[1757416264823,3.01503033,217.92,217.8,4.23150114]
[1757416265023,3.01503033,217.92,217.81,4.23150114]
[1757416265228,3.01503033,217.92,217.82,4.23150114]
[1757416265425,3.01503033,217.92,217.83,4.23150114]
[1757416265625,3.01503033,217.92,217.78,9.47948]
[1757416265826,3.01503033,217.89,217.79,4.23127533]
[1757416266024,3.01503033,217.89,217.8,4.23127533]
[1757416266223,3.01503033,217.89,217.78,9.47948]
[1757416266428,3.01503033,217.89,217.79,4.23068092]
[1757416266628,3.01503033,217.89,217.8,4.23068092]
[1757416266831,3.01503033,217.86,217.81,4.23068092]
[1757416267028,3.01503033,217.86,217.78,9.47948]
[1757416267227,3.01503033,217.86,217.79,4.23069945]
[1757416267425,3.01503033,217.86,217.8,4.23069945]
[1757416267625,3.01503033,217.86,217.81,4.23069945]
[1757416267824,3.01503033,217.86,217.78,9.47948]
[1757416268038,3.01503033,217.83,217.78,9.47948]
[1757416268932,3.04782071,217.83,217.78,9.47948]
[1757416269433,3.04782071,217.83,217.78,9.50880112]
[1757416271733,0.03279038,217.83,217.78,9.50880112]
[1757416272434,1.96363595,217.83,217.78,9.50880112]
[1757416275928,0.03279038,217.83,217.78,9.50880112]
[1757416280838,0.03279038,217.83,217.78,11.43964669]
[1757416281640,0.03279038,217.83,217.82,1.93084557]
[1757416286342,0.03279038,217.83,217.8,4.1316]
[1757416286539,0.03279038,217.83,217.82,1.93084557]
[1757416289140,13.78,218.07,217.82,1.93084557]
[1757416289440,1.93084557,217.96,217.87,1.93084557]
[1757416290439,1.93084557,217.96,217.89,0.03142505]
[1757416293845,124.0,218.06,217.89,0.03142505]
[1757416294145,1.93084557,217.96,217.87,1.93084557]
[1757416294541,1.93084557,217.96,217.95,0.03336]
[1757416294745,1.93084557,217.96,217.87,1.93084557]
[1757416294947,1.93084557,217.96,217.93,0.03383178]
[1757416299857,7.38,217.95,217.93,0.03383178]
[1757416300359,1.93084557,217.96,217.93,0.03383178]
[1757416300655,7.38,217.95,217.93,0.03383178]
[1757416300856,1.93084557,217.96,217.93,0.03383178]
[1757416301361,7.38,217.95,217.93,0.03383178]
[1757416301855,1.93084557,217.96,217.93,0.03383178]
[1757416302055,7.38,217.95,217.93,0.03383178]
[1757416302253,1.93084557,217.96,217.93,0.03383178]
[1757416302557,7.38,217.94,217.93,0.03383178]
[1757416305361,9.31084557,217.94,217.85,3.81]
[1757416305550,124.0,218.04,217.85,3.81]
[1757416305551,7.65,217.9,217.86,4.23483693]
[1757416305758,7.65,217.9,217.83,3.84]
[1757416306058,1.93084557,217.89,217.83,3.84]
[1757416306657,7.68281578,217.88,217.84,3.84]
[1757416307850,7.68281578,217.88,217.8,6.06254557]
[1757416308058,7.68281578,217.88,217.82,3.84]
[1757416308255,7.68281578,217.88,217.84,3.84]
[1757416310363,7.65,217.87,217.84,3.84]
[1757416312664,7.65,217.87,217.82,1.93084557]
[1757416312866,7.65,217.87,217.84,3.84]
[1757416313055,7.65,217.87,217.82,1.93084557]
[1757416313364,0.03281578,217.88,217.84,3.84]
[1757416313566,0.03281578,217.88,217.83,3.84]
[1757416313960,0.03281578,217.88,217.84,6.16909398]
[1757416314265,0.03281578,217.88,217.84,1.93084557]
[1757416314466,0.03281578,217.88,217.86,3.84]
[1757416314664,0.03281578,217.88,217.84,1.93084557]
[1757416314864,0.03281578,217.88,217.86,3.84]
[1757416315065,0.03281578,217.88,217.84,6.06174557]
[1757416315267,0.03281578,217.88,217.86,3.84]
[1757416315565,0.03281578,217.88,217.84,6.06174557]
[1757416315766,0.03281578,217.88,217.85,4.24057266]
[1757416315962,0.03281578,217.88,217.84,6.06174557]
[1757416316160,0.03281578,217.88,217.85,4.24057332]
[1757416316359,0.03281578,217.88,217.86,4.24202387]
[1757416316563,0.03281578,217.88,217.87,3.84]
[1757416317168,0.03281578,217.88,217.87,8.07356054]
[1757416320771,0.03281578,217.88,217.87,8.07618038]
[1757416329679,7.68281578,217.88,217.87,4.23618038]
[1757416333281,0.03281578,217.88,217.87,8.07618038]
[1757416333578,0.03281578,217.88,217.87,4.23618038]
[1757416334088,7.67281578,217.88,217.87,4.23618038]
[1757416335774,7.67281578,217.88,217.8,3.85]
[1757416335980,7.67281578,217.88,217.81,7.91679557]
[1757416336179,7.67281578,217.88,217.82,4.24560446]
[1757416336475,0.03281578,217.88,217.83,4.24560446]
[1757416336785,7.64,217.87,217.84,4.24560446]
[1757416337089,7.64,217.87,217.85,4.24560446]
[1757416337285,7.64,217.87,217.81,3.85]
[1757416337487,7.64,217.87,217.83,3.85]
[1757416337686,7.64,217.87,217.84,4.24506768]
[1757416337986,7.64,217.87,217.85,4.24506768]
[1757416338181,0.03281578,217.88,217.83,3.85]
[1757416338386,7.64,217.87,217.84,4.2450742]
[1757416338585,7.64,217.87,217.78,9.47948]
[1757416338887,7.64,217.87,217.79,4.24540781]
[1757416339085,7.64,217.87,217.8,4.24540781]
[1757416339285,7.64,217.87,217.78,9.47948]
[1757416339489,7.64,217.87,217.79,4.24431806]
[1757416339786,7.64,217.87,217.8,4.24431806]
[1757416340082,7.64,217.87,217.78,9.47948]
[1757416340387,7.64,217.87,217.79,4.24442899]
[1757416340580,7.64,217.87,217.8,4.24442899]
[1757416340881,7.64,217.87,217.78,9.47948]
[1757416341082,7.64,217.87,217.79,4.24352789]
[1757416341280,7.64,217.87,217.78,9.47948]
[1757416341587,7.64,217.87,217.79,4.24246866]
[1757416341884,7.64,217.87,217.78,9.47948]
[1757416342085,7.64,217.87,217.79,4.24246866]
[1757416342286,7.64,217.87,217.78,9.47948]
[1757416342588,7.64,217.87,217.8,3.85]
[1757416346287,7.64,217.87,217.81,4.24003239]
[1757416346486,7.64,217.87,217.82,4.24003239]
[1757416346792,7.64,217.87,217.84,3.85]
[1757416347189,7.64,217.87,217.85,4.23164383]
[1757416347487,7.64,217.87,217.84,3.85]
[1757416347688,7.64,217.87,217.85,4.23162689]
[1757416347888,7.64,217.87,217.84,3.85]
[1757416348084,7.64,217.87,217.85,4.23168228]
[1757416348285,0.03281578,217.88,217.85,3.85]
[1757416348584,7.67281578,217.88,217.85,3.85]
[1757416349690,0.03281578,217.88,217.86,4.23209571]
[1757416349986,0.03281578,217.88,217.87,3.85]
[1757416350387,0.03281578,217.88,217.87,8.08203639]
[1757416354689,7.67281578,217.88,217.87,4.23203639]
[1757416354992,7.67281578,217.88,217.81,3.85]
[1757416355192,7.67281578,217.88,217.82,4.23112933]
[1757416355393,7.64,217.87,217.83,8.08112933]
[1757416355592,7.64,217.87,217.84,8.08112933]
[1757416355795,7.64,217.87,217.85,4.23112933]
[1757416355995,7.64,217.87,217.86,4.23112933]
[1757416356191,7.64,217.87,217.84,3.85]
[1757416356393,7.64,217.87,217.85,4.23117649]
[1757416356594,7.64,217.87,217.84,3.85]
[1757416356795,7.64,217.87,217.85,4.23117649]
[1757416356992,7.64,217.87,217.84,3.85]
[1757416357197,7.64,217.87,217.85,4.23117649]
[1757416357398,7.64,217.87,217.84,3.85]
[1757416357598,7.64,217.87,217.85,4.23117231]
[1757416357799,7.64,217.87,217.84,3.85]
[1757416358102,7.64,217.87,217.85,4.23117231]
[1757416358397,7.64,217.87,217.84,3.85]
[1757416358598,7.64,217.87,217.85,4.2311612]
[1757416358800,7.64,217.87,217.84,3.85]
[1757416359099,7.64,217.87,217.85,8.0811612]
[1757416359300,7.64,217.87,217.85,3.85]
[1757416360392,7.64,217.87,217.79,7.14679833]
[1757416360593,7.64,217.87,217.8,8.08112244]
[1757416360794,7.64,217.87,217.81,4.23112244]
[1757416360998,0.03281578,217.88,217.82,4.23112244]
[1757416361204,0.03281578,217.88,217.83,4.23112244]
[1757416361399,0.03281578,217.88,217.84,4.23112244]
[1757416361601,7.64,217.87,217.81,3.85]
[1757416361802,0.03281578,217.88,217.82,4.23128171]
[1757416362097,7.64,217.87,217.83,8.08128171]
[1757416362301,7.64,217.87,217.84,4.23128171]
[1757416362502,7.64,217.87,217.83,3.85]
[1757416362701,0.03281578,217.88,217.84,4.23128067]
[1757416362996,7.64,217.87,217.83,3.85]
[1757416363195,7.64,217.87,217.84,4.23128067]
[1757416363400,7.74,217.87,217.83,3.85]
[1757416363605,7.74,217.87,217.84,4.23128464]
[1757416363903,7.74,217.87,217.79,3.84]
[1757416364103,0.03281578,217.88,217.81,3.84]
[1757416364303,0.03281578,217.88,217.83,3.84]
[1757416364504,0.03281578,217.88,217.85,3.84]
[1757416365003,7.77281578,217.88,217.85,3.84]
[1757416366507,7.77281578,217.88,217.86,4.23155442]
[1757416366707,7.77281578,217.88,217.85,3.84]
[1757416366900,7.77281578,217.88,217.86,4.23155442]
[1757416367206,7.77281578,217.88,217.85,3.84]
[1757416367406,7.77281578,217.88,217.86,4.23168076]
[1757416367606,0.03281578,217.88,217.81,3.84]
[1757416367806,0.03281578,217.88,217.82,4.23168076]
[1757416368006,7.74,217.87,217.83,4.23168076]
[1757416368207,7.74,217.87,217.8,4.1318]
[1757416368208,7.74,217.87,217.84,8.07168076]
[1757416368407,7.74,217.87,217.85,4.23168076]
[1757416368606,7.74,217.87,217.86,4.23168076]
[1757416370208,8.2,217.87,217.78,9.47948]
[1757416370506,7.74,217.87,217.79,4.23290348]
[1757416370702,7.74,217.87,217.8,4.23290348]
[1757416370898,7.74,217.87,217.81,4.23290348]
[1757416371102,7.74,217.87,217.82,4.23290348]
[1757416371409,7.74,217.87,217.78,9.47948]
[1757416371609,7.74,217.87,217.79,4.23319205]
[1757416371910,7.74,217.87,217.8,4.23319205]
[1757416372202,3.01489833,217.85,217.81,4.23319205]
[1757416372407,0.03281578,217.88,217.78,9.47948]
[1757416372408,7.74,217.84,217.78,9.47948]
[1757416372608,3.01489833,217.84,217.79,4.23328474]
[1757416372810,7.74,217.83,217.8,4.23328474]
[1757416373011,3.04384909,217.84,217.81,4.23328474]
[1757416373209,3.04384909,217.84,217.78,9.47948]
[1757416373508,7.74,217.83,217.79,4.23317779]
[1757416373710,3.04384909,217.84,217.8,4.23317779]
[1757416373907,3.04384909,217.84,217.81,4.23317779]
[1757416374107,3.04384909,217.84,217.78,9.47948]
[1757416374306,3.04384909,217.84,217.79,4.23317779]
[1757416374502,3.04384909,217.84,217.8,4.23317779]
[1757416374707,3.04384909,217.84,217.81,4.23317779]
[1757416374908,3.04384909,217.84,217.78,9.47948]
[1757416375112,7.74,217.83,217.79,4.23317616]
[1757416375306,3.04384909,217.84,217.8,4.23317616]
[1757416375507,3.04384909,217.84,217.81,4.23317616]
[1757416375708,10.78384909,217.84,217.78,9.47948]
[1757416375910,7.76895076,217.84,217.8,3.84]
[1757416376212,7.76895076,217.84,217.81,4.2327865]
[1757416376414,7.74,217.83,217.8,3.84]
[1757416376712,7.76895076,217.84,217.81,3.84]
[1757416379108,0.02895076,217.84,217.79,3.84]
[1757416379315,0.02895076,217.84,217.8,4.22723307]
[1757416379514,0.02895076,217.84,217.82,3.84]
[1757416380814,0.02895076,217.84,217.78,13.31948]
[1757416381009,0.02895076,217.84,217.8,3.84]
[1757416381210,0.02895076,217.84,217.81,8.06739918]
[1757416381411,0.02895076,217.84,217.81,3.84]
[1757416381607,0.02895076,217.84,217.78,9.47948]
[1757416381812,0.02895076,217.84,217.8,3.84]
[1757416382010,0.02895076,217.84,217.81,8.06739611]
[1757416382213,0.02895076,217.84,217.81,3.84]
[1757416382414,0.02895076,217.84,217.82,8.0674006]
[1757416382611,0.02895076,217.84,217.82,3.84]
[1757416384315,0.02895076,217.84,217.79,3.84]
[1757416384516,0.02895076,217.84,217.81,3.84]
[1757416384715,0.02895076,217.84,217.83,3.84]
[1757416385021,0.02895076,217.84,217.83,8.06751071]
[1757416390825,0.02895076,217.84,217.83,8.06864345]
[1757416404331,7.53895076,217.84,217.83,4.22864345]
[1757416405625,0.02895076,217.84,217.79,3.84]
[1757416405830,7.51,217.83,217.8,4.23262338]
[1757416406025,7.51,217.83,217.79,3.84]
[1757416406026,0.02895076,217.84,217.81,4.23262338]
[1757416406230,7.51,217.83,217.82,4.23262338]
[1757416410733,7.51,217.83,217.78,9.47948]
[1757416410734,1.92973508,217.83,217.78,9.47948]
[1757416410934,7.51,217.82,217.79,4.22867389]
[1757416411135,7.51,217.82,217.8,4.22867389]
[1757416411332,1.92973508,217.83,217.78,9.47948]
[1757416411526,1.92973508,217.83,217.79,4.22811864]
[1757416411731,7.51,217.82,217.8,4.22811864]
[1757416412034,7.51,217.82,217.78,9.47948]
[1757416412233,7.51,217.82,217.79,4.22777625]
[1757416412434,1.92973508,217.83,217.78,9.47948]
[1757416412639,1.92973508,217.83,217.79,4.22780892]
[1757416412935,7.51,217.82,217.8,4.22769824]
[1757416413135,7.51,217.82,217.78,9.47948]
[1757416413331,7.51,217.82,217.79,4.22724282]
[1757416413532,1.92973508,217.83,217.8,4.22722773]
[1757416413736,7.51,217.82,217.78,9.47948]
[1757416413930,1.92973508,217.83,217.79,4.22722773]
[1757416414235,7.51,217.82,217.8,4.22722773]
[1757416414434,7.51,217.82,217.78,9.47948]
[1757416414635,1.92973508,217.83,217.79,4.22683011]
[1757416414935,1.92973508,217.83,217.8,4.22683011]
[1757416415139,7.51,217.82,217.78,9.47948]
[1757416415333,1.92973508,217.81,217.79,4.22649176]
[1757416415637,1.92973508,217.81,217.78,9.47948]
[1757416415833,9.43973508,217.79,217.78,9.47948]
[1757416416540,9.43973508,217.79,217.78,13.70511487]
[1757416417139,9.43973508,217.79,217.78,9.47948]
[1757416418636,9.89973508,217.79,217.78,9.47948]
[1757416419142,9.43973508,217.79,217.78,9.47948]
[1757416419336,7.51,217.79,217.78,9.47948]
[1757416419531,9.43973508,217.8,217.78,9.47948]
[1757416420737,1.92973508,217.8,217.78,9.47948]
[1757416420931,1.92973508,217.8,217.79,3.84]
[1757416423439,1.92973508,217.82,217.79,3.85]
[1757416423638,1.92973508,217.82,217.78,9.47948]
[1757416423839,7.51,217.83,217.8,3.85]
[1757416424439,7.51,217.83,217.81,3.85]
[1757416424639,7.51,217.83,217.79,3.85]
[1757416424839,7.51,217.83,217.78,9.47948]
[1757416425040,7.51,217.83,217.8,3.85]
[1757416427246,7.59,217.83,217.8,3.85]
[1757416427440,1.95868584,217.84,217.8,3.85]
[1757416427649,7.59,217.83,217.8,3.85]
[1757416428345,7.59,217.81,217.78,13.32948]
[1757416428744,7.59,217.81,217.79,3.85]
[1757416428946,9.51973508,217.82,217.79,3.85]
[1757416429249,7.59,217.81,217.79,3.85]
[1757416429744,1.92973508,217.82,217.78,13.32948]
[1757416429945,7.59,217.81,217.78,9.47948]
[1757416430348,1.92973508,217.82,217.78,9.47948]
[1757416430549,7.59,217.81,217.78,13.32948]
[1757416433950,1.92973508,217.82,217.78,13.32948]
[1757416434146,7.59,217.81,217.78,13.32948]
[1757416434348,1.92973508,217.82,217.78,13.32948]
[1757416434751,7.59,217.81,217.78,13.32948]
[1757416435054,1.92973508,217.82,217.78,9.47948]
[1757416435255,7.59,217.81,217.78,9.47948]
[1757416435750,1.92973508,217.82,217.78,9.47948]
[1757416436152,1.92973508,217.8,217.78,9.47948]
[1757416436651,1.92973508,217.8,217.78,13.32948]
[1757416437555,9.51973508,217.8,217.78,13.32948]
[1757416440955,1.92973508,217.8,217.79,3.85]
[1757416441457,1.92973508,217.82,217.79,3.85]
[1757416441855,1.92973508,217.82,217.78,9.47948]
[1757416442062,1.92973508,217.82,217.79,3.85]
[1757416442262,0.02895076,217.84,217.79,3.85]
[1757416443166,0.02895076,217.84,217.81,3.85]
[1757416443460,0.02895076,217.84,217.79,3.85]
[1757416443661,0.02895076,217.84,217.81,3.85]
[1757416443858,0.02895076,217.84,217.79,3.85]
[1757416444053,0.02895076,217.84,217.81,3.85]
[1757416444259,0.02895076,217.84,217.79,3.85]
[1757416444459,0.02895076,217.84,217.81,3.85]
[1757416444665,0.02895076,217.84,217.79,3.85]
[1757416444865,0.02895076,217.84,217.8,4.21320496]
[1757416445061,0.02895076,217.84,217.79,3.85]
[1757416445262,0.02895076,217.84,217.81,3.85]
[1757416445561,0.02895076,217.84,217.79,3.85]
[1757416445761,0.02895076,217.84,217.81,3.85]
[1757416446064,0.02895076,217.84,217.79,3.85]
[1757416446268,0.02895076,217.84,217.81,3.85]
[1757416446563,0.02895076,217.84,217.79,3.85]
[1757416446764,0.02895076,217.84,217.81,3.85]
[1757416446955,0.02895076,217.84,217.79,3.85]
[1757416447154,0.02895076,217.84,217.81,3.85]
[1757416447363,0.02895076,217.84,217.79,3.85]
[1757416447565,0.02895076,217.84,217.8,4.21636188]
[1757416447765,0.02895076,217.84,217.82,3.85]
[1757416447960,0.02895076,217.84,217.78,9.47948]
[1757416447961,9.54868584,217.84,217.78,9.47948]
[1757416448159,1.95868584,217.84,217.79,8.06641629]
[1757416448365,7.59,217.83,217.8,8.06641629]
[1757416448565,7.59,217.83,217.8,3.85]
[1757416449061,1.95868584,217.84,217.8,3.85]
[1757416449267,9.51973508,217.82,217.78,9.47948]
[1757416449463,7.59,217.81,217.79,4.21951677]
[1757416449664,1.92973508,217.82,217.8,4.21951677]
[1757416449865,9.51973508,217.82,217.79,3.85]
[1757416450059,9.51973508,217.82,217.8,4.21951874]
[1757416450266,9.51973508,217.82,217.79,3.85]
[1757416450467,9.51973508,217.82,217.8,4.21991169]
[1757416450657,9.51973508,217.82,217.79,3.85]
[1757416450861,9.51973508,217.82,217.8,4.21991103]
[1757416451057,9.51973508,217.82,217.79,3.85]
[1757416451263,9.51973508,217.82,217.8,4.22015452]
[1757416451467,9.51973508,217.82,217.79,3.85]
[1757416451661,1.92973508,217.82,217.8,4.22027313]
[1757416451962,7.59,217.81,217.79,3.85]
[1757416452161,7.59,217.81,217.78,9.47948]
[1757416452162,7.59,217.81,217.78,13.32948]
[1757416452362,7.59,217.81,217.79,4.2207705]
[1757416452562,7.59,217.81,217.8,4.2207705]
[1757416462776,7.59,217.81,217.78,9.47948]
[1757416463069,7.42,217.82,217.79,4.22297648]
[1757416463276,3.01717737,217.83,217.78,9.47948]
[1757416463575,3.01717737,217.83,217.79,4.22299485]
[1757416463875,7.42,217.82,217.78,9.47948]
[1757416464077,7.42,217.82,217.79,4.22299485]
[1757416464375,3.01717737,217.83,217.78,9.47948]
[1757416464571,7.42,217.82,217.78,9.47948]
[1757416464974,3.01717737,217.83,217.78,9.47948]
[1757416465374,7.42,217.82,217.78,9.47948]
[1757416465767,3.01717737,217.83,217.78,9.47948]
[1757416466379,3.01717737,217.8,217.78,9.47948]
[1757416466773,7.42,217.79,217.78,9.47948]
[1757416485188,3.01717737,217.8,217.79,3.87]
[1757416485388,10.07717737,217.8,217.78,9.47948]
[1757416485585,3.01717737,217.8,217.79,3.87]
[1757416486687,10.07717737,217.8,217.78,9.47948]
[1757416488989,10.07717737,217.8,217.78,13.34948]
[1757416489487,3.01717737,217.8,217.79,3.87]
[1757416490187,10.07717737,217.83,217.78,9.47948]
[1757416490386,10.07717737,217.83,217.79,3.87]
[1757416490587,10.07717737,217.83,217.78,9.47948]
[1757416490787,10.07717737,217.83,217.79,3.87]
[1757416490986,3.01717737,217.83,217.79,3.87]
[1757416491586,7.06,217.82,217.79,3.87]
[1757416492593,3.01717737,217.83,217.79,3.87]
[1757416492795,7.06,217.82,217.79,3.87]
[1757416492996,3.01717737,217.83,217.79,3.87]
[1757416493397,7.06,217.82,217.79,3.87]
[1757416494595,7.06,217.82,217.78,9.47948]
[1757416495190,7.06,217.82,217.79,3.87]
[1757416497000,3.01717737,217.83,217.79,3.87]
[1757416497199,7.06,217.82,217.79,3.87]
[1757416497499,3.01717737,217.83,217.79,3.87]
[1757416497699,3.01717737,217.83,217.78,9.47948]
[1757416497897,7.06,217.82,217.78,9.47948]
[1757416498102,3.01717737,217.83,217.78,13.34948]
[1757416498404,7.06,217.82,217.78,13.34948]
[1757416498599,3.01717737,217.83,217.78,13.34948]
[1757416499001,7.06,217.82,217.78,13.34948]
[1757416499198,3.01717737,217.83,217.78,13.34948]
[1757416499399,7.06,217.82,217.78,13.34948]
[1757416499594,3.01717737,217.83,217.78,13.34948]
[1757416500194,7.06,217.82,217.78,13.34948]
[1757416500499,7.06,217.82,217.79,3.87]
[1757416501100,3.01717737,217.83,217.79,3.87]
[1757416501300,7.06,217.82,217.79,3.87]
[1757416501805,3.01717737,217.83,217.79,3.87]
[1757416502006,7.06,217.82,217.79,3.87]
[1757416502602,7.66198262,217.84,217.78,9.47948]
[1757416502802,10.67915999,217.84,217.79,3.87]
[1757416503006,17.73915999,217.84,217.79,3.87]
[1757416503604,10.67915999,217.84,217.78,9.47948]
[1757416503812,10.67915999,217.84,217.79,3.87]
[1757416504110,3.04612813,217.84,217.78,9.47948]
[1757416504804,3.04612813,217.84,217.79,3.87]
[1757416505109,3.04612813,217.84,217.78,9.47948]
[1757416505306,3.04612813,217.84,217.79,3.87]
[1757416505609,0.02895076,217.84,217.78,9.47948]
[1757416506506,0.02895076,217.84,217.79,3.87]
[1757416506698,0.02895076,217.84,217.78,9.47948]
[1757416506900,0.02895076,217.84,217.79,4.23368434]
[1757416507105,7.08895076,217.84,217.79,3.87]
[1757416507408,7.08895076,217.84,217.78,9.47948]
[1757416507609,7.08895076,217.84,217.79,4.23385742]
[1757416507803,7.08895076,217.84,217.78,9.47948]
[1757416508003,7.08895076,217.84,217.79,4.23385742]
[1757416508210,7.08895076,217.84,217.81,3.87]
[1757416508407,7.08895076,217.84,217.78,9.47948]
[1757416508608,7.08895076,217.84,217.79,4.23352247]
[1757416508909,7.08895076,217.84,217.79,3.87]
[1757416509104,7.08895076,217.84,217.78,9.47948]
[1757416509305,7.08895076,217.84,217.79,4.23320386]
[1757416509509,7.08895076,217.84,217.81,3.87]
[1757416510008,0.02895076,217.84,217.79,3.87]
[1757416510207,0.02895076,217.84,217.81,3.87]
[1757416510413,0.02895076,217.84,217.83,3.87]
[1757416512416,0.02895076,217.84,217.83,4.33]
[1757416512615,0.02895076,217.84,217.83,3.87]
[1757416521115,7.72,217.83,217.78,9.47948]
[1757416521314,9.65014352,217.8,217.78,9.47948]
[1757416521712,9.65014352,217.8,217.78,13.32948]
[1757416521917,1.93014352,217.8,217.78,13.32948]
[1757416525316,7.72,217.79,217.78,9.47948]
[1757416526423,1.93014352,217.8,217.78,9.47948]
[1757416526820,9.65014352,217.8,217.78,9.47948]
[1757416527514,0.02895076,217.84,217.78,9.47948]
[1757416527720,1.95909428,217.84,217.79,4.21700781]
[1757416527919,1.95909428,217.84,217.78,9.47948]
[1757416528120,1.95909428,217.84,217.8,3.85]
[1757416528326,1.95909428,217.84,217.81,3.85]
[1757416528721,0.02895076,217.84,217.79,3.85]
[1757416528921,0.02895076,217.84,217.8,4.21710929]
[1757416529122,0.02895076,217.84,217.79,3.85]
[1757416529323,0.02895076,217.84,217.8,4.21719711]
[1757416529523,0.02895076,217.84,217.79,3.85]
[1757416529724,0.02895076,217.84,217.81,3.85]
[1757416529925,0.02895076,217.84,217.79,3.85]
[1757416530226,0.02895076,217.84,217.81,3.85]
[1757416530530,0.02895076,217.84,217.79,3.85]
[1757416530826,0.02895076,217.84,217.8,4.21724928]
[1757416531027,0.02895076,217.84,217.79,3.85]
[1757416531223,0.02895076,217.84,217.81,3.85]
[1757416531428,0.02895076,217.84,217.79,3.85]
[1757416531622,0.02895076,217.84,217.81,3.85]
[1757416531926,0.02895076,217.84,217.78,11.40962352]
[1757416532126,0.02895076,217.84,217.79,4.21729387]
[1757416532324,0.02895076,217.84,217.8,4.21729387]
[1757416532524,0.02895076,217.84,217.78,11.40962352]
[1757416532525,0.02895076,217.84,217.79,3.85]
[1757416532824,0.02895076,217.84,217.81,3.85]
[1757416533124,0.02895076,217.84,217.79,3.85]
[1757416533328,0.02895076,217.84,217.8,4.21750584]
[1757416533528,0.02895076,217.84,217.81,3.85]
[1757416535434,0.02895076,217.84,217.78,9.47948]
[1757416535635,0.02895076,217.84,217.8,3.84]
[1757416535932,0.02895076,217.84,217.78,9.47948]
[1757416536126,0.02895076,217.84,217.8,3.84]
[1757416536328,0.02895076,217.84,217.78,9.47948]
[1757416536533,0.02895076,217.84,217.79,4.21809886]
[1757416536733,0.02895076,217.84,217.79,3.84]
[1757416537034,0.02895076,217.84,217.78,9.47948]
[1757416537230,0.02895076,217.84,217.79,4.21809886]
[1757416537430,0.02895076,217.84,217.79,3.84]
[1757416537834,0.02895076,217.84,217.8,4.21827509]
[1757416538140,0.02895076,217.84,217.79,3.84]
[1757416538334,0.02895076,217.84,217.81,3.84]
[1757416539736,0.02895076,217.84,217.82,1.93014352]
[1757416539935,0.02895076,217.84,217.83,3.84]
[1757416541536,0.02895076,217.84,217.83,8.05796016]
[1757416542138,0.02895076,217.84,217.83,8.05807398]
[1757416542334,0.02895076,217.84,217.83,3.84]
[1757416544140,0.02895076,217.84,217.83,8.05795065]
[1757416544340,0.02895076,217.84,217.83,3.84]
[1757416546641,0.02895076,217.84,217.83,8.05751295]
[1757416547047,0.02895076,217.84,217.83,3.84]
[1757416548641,0.02895076,217.84,217.83,8.05792245]
[1757416552245,0.02895076,217.84,217.83,9.98806597]
[1757416556649,0.02895076,217.84,217.83,5.77014352]
[1757416560048,0.02895076,217.84,217.83,3.84]
[1757416560243,7.70895076,217.84,217.81,3.84]
[1757416560444,7.68,217.83,217.79,3.84]
[1757416560844,0.02895076,217.84,217.79,3.84]
[1757416561051,1.93014352,217.83,217.78,9.47948]
[1757416561248,7.68,217.82,217.78,9.47948]
[1757416561655,9.61014352,217.83,217.79,3.84]
[1757416561848,7.68,217.83,217.79,3.84]
[1757416562351,0.02895076,217.84,217.79,3.84]
[1757416562856,0.02895076,217.84,217.81,3.84]